bitfinex/quotes_BTCUSD_20241128
["timestamp","ask_amount","ask_price","bid_price","bid_amount"]
[1732788462858,0.38854993,94832.0,94831.0,0.002723]
[1732788463532,0.38154993,94832.0,94831.0,0.002723]
[1732788463675,0.38854993,94832.0,94831.0,0.002723]
[1732788464335,0.38154993,94832.0,94831.0,0.001723]
[1732788464554,0.30959421,94832.0,94831.0,0.003723]
[1732788464779,0.32959421,94832.0,94831.0,0.003723]
[1732788464988,0.32959421,94832.0,94831.0,0.002723]
[1732788465199,0.32959421,94832.0,94831.0,0.003723]
[1732788466481,0.29959421,94832.0,94831.0,0.003723]
[1732788466703,0.31959421,94832.0,94831.0,0.003723]
[1732788466932,0.29959421,94832.0,94831.0,0.003723]
[1732788467146,0.39266113,94832.0,94831.0,0.003723]
[1732788467365,0.41266113,94832.0,94831.0,0.003723]
[1732788469648,0.43566113,94832.0,94831.0,0.003723]
[1732788471385,0.02,94817.0,94811.0,0.0017234]
[1732788471593,0.30794529,94817.0,94811.0,0.0017234]
[1732788471804,0.35193759,94817.0,94811.0,0.0017234]
[1732788472695,0.35593759,94817.0,94811.0,0.0017234]
[1732788473863,0.36593759,94817.0,94811.0,0.0017234]
[1732788474333,0.37093759,94817.0,94811.0,0.0017234]
[1732788475673,0.36693759,94817.0,94811.0,0.0017234]
[1732788476139,0.37093759,94817.0,94811.0,0.0017234]
[1732788476387,0.31461121,94817.0,94811.0,0.0017234]
[1732788476612,0.30561121,94817.0,94811.0,0.0017234]
[1732788476823,0.31361121,94817.0,94811.0,0.0017234]
[1732788477463,0.31861121,94817.0,94811.0,0.0017234]
[1732788477672,0.30961121,94817.0,94811.0,0.0017234]
[1732788478121,0.40684973,94817.0,94811.0,0.0017234]
[1732788478337,0.30000452,94817.0,94811.0,0.0017234]
[1732788478553,0.126466,94817.0,94811.0,0.0017234]
[1732788478765,0.12879991,94817.0,94811.0,0.0017234]
[1732788478997,0.12979991,94817.0,94811.0,0.0017234]
[1732788480837,0.12979991,94817.0,94816.0,0.01006086]
[1732788481065,0.1849648,94817.0,94816.0,0.01006086]
[1732788481540,0.2854761,94817.0,94816.0,0.01006086]
[1732788481805,0.3647761,94817.0,94816.0,0.001723]
[1732788482035,0.3637761,94817.0,94816.0,0.001723]
[1732788482274,0.3657761,94817.0,94816.0,0.001723]
[1732788482509,0.3757761,94817.0,94816.0,0.001723]
[1732788483375,0.3727761,94817.0,94816.0,0.001723]
[1732788483862,0.3747761,94817.0,94816.0,0.001723]
[1732788485167,0.3847761,94817.0,94816.0,0.001723]
[1732788485380,0.4077761,94817.0,94816.0,0.001723]
[1732788485813,0.44024542,94817.0,94816.0,0.001723]
[1732788486051,0.36408053,94817.0,94816.0,0.001723]
[1732788486285,0.32961121,94817.0,94816.0,0.001723]
[1732788486537,0.32761121,94817.0,94816.0,0.001723]
[1732788486755,0.33161121,94817.0,94816.0,0.001723]
[1732788487186,0.33961121,94817.0,94816.0,0.002723]
[1732788487403,0.42052723,94817.0,94816.0,0.002723]
[1732788487858,0.31961121,94817.0,94816.0,0.002723]
[1732788488311,0.31961121,94817.0,94816.0,0.01108074]
[1732788488312,0.23631121,94817.0,94816.0,0.01108074]
[1732788488535,0.24231121,94817.0,94816.0,0.01108074]
[1732788489012,0.24231121,94817.0,94816.0,0.01108104]
[1732788489481,0.29472723,94817.0,94816.0,0.01008104]
[1732788489692,0.29972723,94817.0,94816.0,0.01108104]
[1732788489928,0.30672723,94817.0,94816.0,0.01108104]
[1732788490383,0.31272723,94817.0,94816.0,0.01208104]
[1732788490861,0.31272723,94817.0,94816.0,0.01008104]
[1732788490862,0.29972723,94817.0,94816.0,0.01008104]
[1732788491073,0.30272723,94817.0,94816.0,0.01008104]
[1732788491960,0.29772723,94817.0,94816.0,0.01008104]
[1732788492230,0.30172723,94817.0,94816.0,0.0100819]
[1732788492464,0.30172723,94817.0,94816.0,0.001723]
[1732788492697,0.29472723,94817.0,94816.0,0.01008209]
[1732788492949,0.30972723,94817.0,94816.0,0.001723]
[1732788493175,0.30772723,94817.0,94816.0,0.001723]
[1732788493390,0.29772723,94817.0,94816.0,0.001723]
[1732788493605,0.30072723,94817.0,94816.0,0.001723]
[1732788494935,0.32072723,94817.0,94816.0,0.001723]
[1732788495159,0.40322723,94817.0,94816.0,0.001723]
[1732788495375,0.43576578,94817.0,94816.0,0.001723]
[1732788495899,0.48456578,94817.0,94816.0,0.001723]
[1732788496732,0.48156578,94817.0,94816.0,0.001723]
[1732788497199,0.48856578,94817.0,94816.0,0.002723]
[1732788497407,0.48556578,94817.0,94816.0,0.002723]
[1732788497858,0.49156578,94817.0,94816.0,0.002723]
[1732788499333,0.01,94812.0,94811.0,4e-07]
[1732788499335,0.168471,94812.0,94811.0,4e-07]
[1732788499535,0.168471,94812.0,94801.0,0.0017258]
[1732788499536,0.04,94804.0,94803.0,9.3e-07]
[1732788499890,0.43497532,94804.0,94803.0,9.3e-07]
[1732788500109,0.43264079,94804.0,94803.0,9.3e-07]
[1732788500320,0.49905681,94804.0,94803.0,9.3e-07]
[1732788500543,0.46654123,94804.0,94803.0,9.3e-07]
[1732788500755,0.47976423,94804.0,94803.0,0.00100093]
[1732788501675,0.48776423,94804.0,94803.0,0.00100093]
[1732788502139,0.47076423,94804.0,94803.0,9.3e-07]
[1732788502359,0.47976423,94804.0,94803.0,0.00100093]
[1732788502571,0.48876423,94804.0,94803.0,0.00100093]
[1732788502796,0.47976423,94804.0,94803.0,9.3e-07]
[1732788503245,0.48876423,94804.0,94803.0,0.00100093]
[1732788503452,0.46576423,94804.0,94803.0,0.00100093]
[1732788503881,0.45676423,94804.0,94803.0,0.00100093]
[1732788504134,0.43676423,94804.0,94803.0,0.00100093]
[1732788504396,0.23732521,94804.0,94803.0,0.00100093]
[1732788504628,0.24632521,94804.0,94803.0,0.00100093]
[1732788505331,0.23732521,94804.0,94803.0,0.00100093]
[1732788505536,0.23732521,94804.0,94803.0,9.3e-07]
[1732788505730,0.32534253,94804.0,94803.0,9.3e-07]
[1732788506047,0.33334253,94804.0,94803.0,9.3e-07]
[1732788506289,0.32534253,94804.0,94803.0,9.3e-07]
[1732788506494,0.35434253,94804.0,94803.0,9.3e-07]
[1732788506939,0.34534253,94804.0,94803.0,9.3e-07]
[1732788507149,0.35434253,94804.0,94803.0,9.3e-07]
[1732788507605,0.43204253,94804.0,94803.0,9.3e-07]
[1732788507830,0.44604253,94804.0,94803.0,9.3e-07]
[1732788508046,0.45304253,94804.0,94803.0,9.3e-07]
[1732788508498,0.57735328,94804.0,94803.0,9.3e-07]
[1732788508755,0.58635328,94804.0,94803.0,0.00100093]
[1732788508987,0.58636779,94804.0,94803.0,9.3e-07]
[1732788509233,0.44604253,94804.0,94803.0,9.3e-07]
[1732788509437,0.59534107,94804.0,94803.0,0.00100093]
[1732788510114,0.51764107,94804.0,94803.0,0.00100093]
[1732788510326,0.48564107,94804.0,94803.0,0.00100093]
[1732788510544,0.35434253,94804.0,94803.0,0.00100093]
[1732788511219,0.4478959,94804.0,94803.0,0.00100093]
[1732788511450,0.4478959,94804.0,94777.0,0.002]
[1732788511451,0.105524,94765.0,94764.0,0.00441864]
[1732788511672,0.105524,94765.0,94764.0,0.01276337]
[1732788512426,0.01,94766.0,94764.0,0.01276337]
[1732788512654,0.01,94766.0,94765.0,0.00834473]
[1732788512900,0.01,94766.0,94764.0,0.00441864]
[1732788512901,0.001,94765.0,94764.0,0.006]
[1732788514381,0.001,94765.0,94764.0,0.0884]
[1732788514596,0.01,94766.0,94764.0,0.187925]
[1732788514812,0.01,94768.0,94765.0,0.005]
[1732788515044,0.001,94766.0,94765.0,0.03844299]
[1732788515259,0.011,94766.0,94764.0,0.0824]
[1732788515487,0.001,94765.0,94764.0,0.0884]
[1732788515717,0.001,94765.0,94764.0,0.0824]
[1732788515939,0.001,94765.0,94764.0,0.1283]
[1732788516395,0.01,94766.0,94755.0,0.0791]
[1732788516611,0.212048,94765.0,94755.0,0.0791]
[1732788516824,0.105529,94761.0,94755.0,0.0791]
[1732788517047,0.105527,94762.0,94755.0,0.0791]
[1732788517521,0.21105,94764.0,94755.0,0.0791]
[1732788517741,0.105528,94762.0,94755.0,0.0791]
[1732788517965,0.105526,94763.0,94755.0,0.0791]
[1732788518176,0.105526,94763.0,94755.0,0.0841]
[1732788518397,0.01,94765.0,94755.0,0.0841]
[1732788518398,0.01233479,94765.0,94755.0,0.184635]
[1732788518626,0.01233479,94765.0,94755.0,0.0791]
[1732788518874,0.105526,94763.0,94755.0,0.0851]
[1732788519097,0.105526,94763.0,94755.0,0.0791]
[1732788519098,0.00233483,94763.0,94755.0,0.0791]
[1732788519334,0.01,94762.0,94755.0,0.0791]
[1732788519537,0.105531,94759.0,94755.0,0.0861]
[1732788519750,0.01,94762.0,94755.0,0.0861]
[1732788519751,0.211058,94761.0,94755.0,0.0861]
[1732788519960,0.105529,94760.0,94755.0,0.0861]
[1732788520185,0.105529,94761.0,94755.0,0.0861]
[1732788520398,0.115529,94761.0,94755.0,0.0861]
[1732788520815,0.115528,94761.0,94755.0,0.0861]
[1732788521119,0.01,94761.0,94755.0,0.0791]
[1732788521337,0.115529,94761.0,94755.0,0.0831]
[1732788521548,0.115529,94761.0,94755.0,0.0791]
[1732788521994,0.116529,94761.0,94755.0,0.0861]
[1732788522457,0.011,94761.0,94755.0,0.0861]
[1732788522681,0.222057,94761.0,94755.0,0.0861]
[1732788522887,0.105531,94759.0,94755.0,0.0861]
[1732788523067,0.222057,94761.0,94755.0,0.0861]
[1732788523320,0.105531,94759.0,94755.0,0.0861]
[1732788523713,0.011,94761.0,94755.0,0.0861]
[1732788523975,0.10553,94760.0,94755.0,0.0861]
[1732788524201,0.011,94761.0,94755.0,0.0861]
[1732788524437,0.011,94761.0,94755.0,0.007]
[1732788524672,0.211048,94765.0,94752.0,0.0017246]
[1732788524673,0.01,94754.0,94752.0,0.0017246]
[1732788524951,0.10787209,94753.0,94752.0,0.0017246]
[1732788525176,0.11787209,94753.0,94752.0,0.0017246]
[1732788526101,0.01233509,94753.0,94752.0,0.0017246]
[1732788526323,0.11887209,94753.0,94752.0,0.0097246]
[1732788527191,0.01333509,94753.0,94752.0,0.0097246]
[1732788527412,0.11887209,94753.0,94752.0,0.0097246]
[1732788528269,0.11887209,94753.0,94752.0,0.0022246]
[1732788528972,0.194079,94753.0,94752.0,0.02391694]
[1732788529224,0.11887209,94753.0,94752.0,0.01056728]
[1732788529699,0.116537,94753.0,94752.0,0.01056728]
[1732788530377,0.1188722,94753.0,94752.0,0.01056728]
[1732788530906,0.1188722,94753.0,94752.0,0.00834268]
[1732788531107,0.1178722,94753.0,94752.0,0.00834268]
[1732788531347,0.1178722,94753.0,94752.0,0.00934268]
[1732788531817,0.1178722,94753.0,94752.0,0.00834268]
[1732788532026,0.01,94753.0,94752.0,0.00834268]
[1732788532252,0.01,94753.0,94752.0,0.0216855]
[1732788532703,0.115537,94753.0,94752.0,0.0216855]
[1732788533145,0.115537,94753.0,94752.0,0.00834268]
[1732788534239,0.115537,94753.0,94752.0,0.00934268]
[1732788534463,0.115537,94753.0,94752.0,0.00834268]
[1732788536396,0.115537,94753.0,94752.0,0.02168482]
[1732788537776,0.115537,94753.0,94751.0,0.00058075]
[1732788537777,0.105538,94752.0,94751.0,0.00058075]
[1732788537983,0.10787314,94752.0,94751.0,0.00892222]
[1732788538196,0.10787314,94752.0,94751.0,0.02226995]
[1732788538645,0.11787314,94752.0,94751.0,0.02226995]
[1732788538873,0.11787314,94752.0,94751.0,0.02326995]
[1732788540276,0.0108623,94753.0,94751.0,0.02326995]
[1732788540486,0.0108623,94753.0,94752.0,0.02169055]
[1732788540487,0.1163993,94753.0,94752.0,0.02169055]
[1732788540961,0.11873438,94753.0,94752.0,0.02169055]
[1732788542078,0.11873438,94753.0,94752.0,0.02269055]
[1732788543580,0.11873438,94753.0,94752.0,0.02169774]
[1732788544074,0.1163993,94753.0,94752.0,0.02169774]
[1732788544980,0.0008623,94753.0,94752.0,0.02169774]
[1732788545261,0.0008623,94753.0,94752.0,0.20763574]
[1732788546137,0.0008623,94753.0,94752.0,0.20863574]
[1732788546369,0.115524,94765.0,94752.0,0.20863574]
[1732788546370,0.01,94771.0,94753.0,0.023]
[1732788546582,0.01,94770.0,94760.0,0.01336097]
[1732788546797,0.01,94772.0,94762.0,0.211055]
[1732788546798,0.01,94771.0,94762.0,0.211055]
[1732788547057,0.01,94771.0,94770.0,0.105518]
[1732788547269,0.01,94771.0,94770.0,0.02169774]
[1732788547484,0.00233456,94778.0,94770.0,0.02169774]
[1732788547719,0.01,94779.0,94773.0,0.105514]
[1732788547927,0.01,94779.0,94774.0,0.02169774]
[1732788548148,0.01,94779.0,94775.0,0.02169774]
[1732788548361,0.01,94779.0,94776.0,0.02169774]
[1732788548577,0.01,94779.0,94777.0,0.02169774]
[1732788548788,0.01,94786.0,94778.0,0.02169774]
[1732788548999,0.210975,94798.0,94779.0,0.02169774]
[1732788549000,0.01,94789.0,94779.0,0.02169774]
[1732788549215,0.01,94791.0,94786.0,0.1055]
[1732788549461,0.01,94791.0,94787.0,0.02169774]
[1732788549678,0.01,94793.0,94788.0,0.02169774]
[1732788549924,0.10549,94796.0,94789.0,0.12719374]
[1732788550160,0.115496,94791.0,94790.0,0.02166619]
[1732788550437,0.21093029,94791.0,94790.0,0.00833262]
[1732788550647,0.21093029,94791.0,94770.0,0.01332404]
[1732788550648,0.105517,94771.0,94770.0,0.01332404]
[1732788550863,0.105517,94771.0,94770.0,0.02165064]
[1732788551091,0.105515,94773.0,94770.0,0.02165064]
[1732788551339,0.105515,94773.0,94771.0,0.02165064]
[1732788551552,0.01233455,94772.0,94760.0,0.013337]
[1732788551781,0.01233455,94772.0,94762.0,0.105527]
[1732788551782,0.115517,94772.0,94762.0,0.105527]
[1732788551994,0.115517,94772.0,94770.0,0.002]
[1732788551995,0.001,94771.0,94770.0,0.002]
[1732788552215,0.001,94771.0,94770.0,0.02365459]
[1732788552433,0.01,94772.0,94770.0,0.02165459]
[1732788552698,0.115516,94772.0,94771.0,0.02165459]
[1732788552931,0.23033779,94772.0,94771.0,0.02165459]
[1732788553168,0.23033779,94772.0,94771.0,0.00832816]
[1732788553390,0.23033779,94772.0,94751.0,0.0017246]
[1732788553391,0.105538,94752.0,94751.0,0.0017246]
[1732788553600,0.115538,94752.0,94751.0,0.01505371]
[1732788554033,0.115538,94752.0,94751.0,0.01005444]
[1732788554684,0.198538,94752.0,94751.0,0.01005444]
[1732788554888,0.198538,94752.0,94751.0,0.01105444]
[1732788555109,0.198538,94752.0,94751.0,0.01005444]
[1732788555608,0.115538,94752.0,94751.0,0.01105444]
[1732788556068,0.125538,94752.0,94751.0,0.01105444]
[1732788556328,0.18053862,94752.0,94751.0,0.01105444]
[1732788556539,0.18053862,94752.0,94751.0,0.01105516]
[1732788556753,0.125538,94752.0,94751.0,0.01005516]
[1732788557168,0.115538,94752.0,94751.0,0.01105516]
[1732788557396,0.125538,94752.0,94751.0,0.01005516]
[1732788557613,0.125538,94752.0,94751.0,0.01105516]
[1732788557833,0.02,94752.0,94751.0,0.01105516]
[1732788558041,0.02,94752.0,94751.0,0.01005516]
[1732788558042,0.125538,94752.0,94751.0,0.01005516]
[1732788558252,0.126538,94752.0,94751.0,0.01005516]
[1732788558490,0.125538,94752.0,94751.0,0.01005516]
[1732788558966,0.125538,94752.0,94751.0,0.00835334]
[1732788559182,0.18053891,94752.0,94751.0,0.00835334]
[1732788559431,0.125538,94752.0,94751.0,2.278e-05]
[1732788559894,0.125538,94752.0,94751.0,0.00102278]
[1732788560130,0.125538,94752.0,94751.0,2.278e-05]
[1732788560546,0.126538,94752.0,94751.0,2.278e-05]
[1732788561013,0.126538,94752.0,94750.0,0.09772157]
[1732788561014,0.115539,94751.0,94750.0,0.09772157]
[1732788561890,0.12787423,94751.0,94750.0,0.09772157]
[1732788562111,0.125539,94751.0,94750.0,0.09772157]
[1732788562323,0.28808652,94751.0,94750.0,0.09772157]
[1732788562782,0.28908652,94751.0,94750.0,0.09772157]
[1732788563256,0.39193173,94751.0,94750.0,0.09772157]
[1732788564348,0.39093173,94751.0,94750.0,0.09772157]
[1732788564551,0.39293173,94751.0,94750.0,0.09772157]
[1732788573529,0.31168421,94751.0,94750.0,0.09772157]
[1732788574685,0.23038421,94751.0,94750.0,0.09772157]
[1732788575783,0.23038421,94751.0,94750.0,0.09944617]
[1732788576732,0.127539,94751.0,94750.0,0.09944617]
[1732788577183,0.022,94751.0,94750.0,0.09944617]
[1732788577633,0.022,94751.0,94750.0,0.20498617]
[1732788577634,0.011,94751.0,94750.0,0.20498617]
[1732788577828,0.02,94751.0,94750.0,0.1077649]
[1732788578031,0.126539,94751.0,94750.0,0.13434893]
[1732788578262,0.021,94751.0,94750.0,0.1087649]
[1732788578726,0.126539,94751.0,94750.0,0.1087649]
[1732788578961,0.126539,94751.0,94750.0,0.10876792]
[1732788579423,0.18072644,94751.0,94750.0,0.10776792]
[1732788579654,0.18072644,94751.0,94750.0,0.09944617]
[1732788579881,0.18172644,94751.0,94750.0,0.10877285]
[1732788580096,0.18072644,94751.0,94750.0,0.10606986]
[1732788580302,0.18172644,94751.0,94750.0,0.10706986]
[1732788580533,0.126539,94751.0,94750.0,0.10706986]
[1732788580761,0.126539,94751.0,94750.0,0.10606986]
[1732788581236,0.126539,94751.0,94750.0,0.11941484]
[1732788582350,0.126539,94751.0,94750.0,0.11771398]
[1732788582586,0.127539,94751.0,94750.0,0.11771398]
[1732788582830,0.126539,94751.0,94750.0,0.11771398]
[1732788583052,0.126539,94751.0,94750.0,0.11603964]
[1732788583287,0.126539,94751.0,94750.0,0.11703964]
[1732788583530,0.021,94751.0,94750.0,0.13273843]
[1732788583763,0.126539,94751.0,94750.0,0.13273843]
[1732788584010,0.02,94751.0,94750.0,0.13373843]
[1732788584501,0.0108623,94754.0,94750.0,0.13373843]
[1732788584755,0.01,94752.0,94751.0,0.03839698]
[1732788584980,0.02,94752.0,94751.0,0.03839698]
[1732788585202,0.125538,94752.0,94751.0,0.03839698]
[1732788585672,0.0108623,94754.0,94753.0,0.105537]
[1732788585888,0.0008623,94754.0,94753.0,0.14393398]
[1732788587040,0.0008623,94754.0,94753.0,0.13058072]
[1732788587266,0.0018623,94754.0,94753.0,0.31954575]
[1732788587780,0.01,94778.0,94771.0,0.0787]
[1732788588032,0.01217751,94788.0,94771.0,0.0787]
[1732788588033,0.0108623,94779.0,94778.0,0.105509]
[1732788588243,0.0008623,94779.0,94778.0,0.13055676]
[1732788588481,0.0008623,94779.0,94778.0,0.14391511]
[1732788589454,0.0008623,94779.0,94778.0,0.20838212]
[1732788589666,0.0018623,94779.0,94778.0,0.22671038]
[1732788590115,0.0018623,94779.0,94778.0,0.21338212]
[1732788590338,0.0018623,94779.0,94778.0,0.09443568]
[1732788590562,0.0008623,94779.0,94778.0,0.10275185]
[1732788590780,0.1063703,94779.0,94778.0,0.04028484]
[1732788590999,0.0008623,94779.0,94778.0,0.02363792]
[1732788591219,0.11870467,94779.0,94778.0,0.02163792]
[1732788591741,0.11870467,94779.0,94778.0,0.01032175]
[1732788591966,0.11970467,94779.0,94778.0,0.01832175]
[1732788592224,0.11870467,94779.0,94778.0,0.01032175]
[1732788592440,0.11870467,94779.0,94778.0,0.01632175]
[1732788592441,0.17859714,94779.0,94778.0,0.01632175]
[1732788592672,0.17959714,94779.0,94778.0,0.01632175]
[1732788592887,0.18959714,94779.0,94778.0,0.01032175]
[1732788593103,0.19159714,94779.0,94778.0,0.00832175]
[1732788593332,0.19259714,94779.0,94778.0,0.00832175]
[1732788593544,0.211032,94772.0,94762.0,0.01663559]
[1732788593756,0.105526,94763.0,94757.0,0.01663559]
[1732788593992,0.10553,94759.0,94758.0,0.03826278]
[1732788594204,0.10553,94759.0,94758.0,0.02162719]
[1732788594454,0.11553,94759.0,94758.0,0.02162719]
[1732788596061,0.11553,94759.0,94758.0,0.02102409]
[1732788596288,0.11553,94759.0,94758.0,0.01902409]
[1732788596588,0.11553,94759.0,94758.0,0.02202409]
[1732788596813,0.11553,94759.0,94758.0,0.02102409]
[1732788597025,0.11553,94759.0,94758.0,0.01902409]
[1732788598165,0.11553,94759.0,94758.0,0.02202409]
[1732788598827,0.11553,94759.0,94758.0,0.02402409]
[1732788599468,0.11553,94759.0,94758.0,0.01902409]
[1732788599682,0.18052698,94759.0,94758.0,0.00571414]
[1732788599908,0.18452698,94759.0,94758.0,0.00571414]
[1732788600147,0.18752698,94759.0,94758.0,0.00571414]
[1732788600632,0.18417731,94759.0,94753.0,0.0017246]
[1732788600871,0.125536,94754.0,94753.0,0.0017246]
[1732788601854,0.01,94754.0,94753.0,0.01503257]
[1732788602097,0.01,94754.0,94753.0,0.0316694]
[1732788602336,0.01,94754.0,94753.0,0.1372064]
[1732788602589,0.003,94759.0,94758.0,0.105531]
[1732788602823,0.003,94759.0,94758.0,0.13548048]
[1732788603068,0.01,94767.0,94758.0,0.02994948]
[1732788603309,0.01,94770.0,94762.0,0.105527]
[1732788603550,0.01,94772.0,94762.0,0.12216636]
[1732788603551,0.01,94767.0,94762.0,0.12216636]
[1732788603797,0.105524,94765.0,94762.0,0.02994948]
[1732788604038,0.221044,94767.0,94762.0,0.02994948]
[1732788604284,0.1163883,94763.0,94762.0,0.02994948]
[1732788604571,0.1163883,94763.0,94762.0,0.01331012]
[1732788605057,0.1163883,94763.0,94762.0,0.02995385]
[1732788605058,0.1063883,94763.0,94762.0,0.02995385]
[1732788605282,0.0008623,94763.0,94762.0,0.13548085]
[1732788605721,0.0018623,94763.0,94762.0,0.13548085]
[1732788605938,0.0018623,94763.0,94762.0,0.13648085]
[1732788607731,0.0018623,94763.0,94762.0,0.30983144]
[1732788607985,0.0018623,94763.0,94762.0,0.30484322]
[1732788608506,0.0018623,94763.0,94762.0,0.03927917]
[1732788608734,0.0008623,94763.0,94762.0,0.03827917]
[1732788608972,0.0008623,94763.0,94762.0,0.14380617]
[1732788609197,0.0008623,94763.0,94762.0,0.14982656]
[1732788609198,0.0018623,94763.0,94762.0,0.14982656]
[1732788609402,0.0008623,94763.0,94762.0,0.14582656]
[1732788609618,0.0008623,94763.0,94762.0,0.14382656]
[1732788609856,0.0028623,94763.0,94762.0,0.14982656]
[1732788610085,0.0028623,94763.0,94762.0,0.38206693]
[1732788610313,0.0028623,94763.0,94762.0,0.46136693]
[1732788610785,0.0028623,94763.0,94762.0,0.47360513]
[1732788611271,0.01,94781.0,94762.0,0.36807813]
[1732788611504,0.01,94781.0,94778.0,0.11883413]
[1732788611723,0.01,94786.0,94778.0,0.11883413]
[1732788611724,0.01,94786.0,94778.0,0.14380856]
[1732788611935,0.01,94785.0,94778.0,0.14380856]
[1732788612154,0.115507,94781.0,94778.0,0.03829956]
[1732788612376,0.1063703,94779.0,94778.0,0.03829956]
[1732788612616,0.1949703,94779.0,94778.0,0.03829956]
[1732788612877,0.19730476,94779.0,94778.0,0.04029956]
[1732788613117,0.20730476,94779.0,94778.0,0.04029956]
[1732788615118,0.27023714,94779.0,94778.0,0.04029956]
[1732788615330,0.2517703,94779.0,94778.0,0.04029956]
[1732788615784,0.2517703,94779.0,94778.0,0.02364624]
[1732788616251,0.2517703,94779.0,94778.0,0.03830706]
[1732788616252,0.2537703,94779.0,94778.0,0.03830706]
[1732788616491,0.2557703,94779.0,94778.0,0.03830707]
[1732788616729,0.2537703,94779.0,94778.0,0.03830707]
[1732788616967,0.2069703,94779.0,94778.0,0.03830707]
[1732788617823,0.2049703,94779.0,94778.0,0.03830707]
[1732788618042,0.0128623,94779.0,94778.0,0.03830707]
[1732788618262,0.0128623,94779.0,94778.0,0.04030707]
[1732788618494,0.0008623,94779.0,94778.0,0.05363051]
[1732788618708,0.0008623,94779.0,94778.0,0.04030707]
[1732788618913,0.1063703,94779.0,94778.0,0.03830707]
[1732788619129,0.0108623,94779.0,94778.0,0.03831931]
[1732788619386,0.0008623,94779.0,94778.0,0.04231931]
[1732788619615,0.0008623,94779.0,94778.0,0.27700815]
[1732788619826,0.0008623,94779.0,94778.0,0.25167352]
[1732788620785,0.0008623,94779.0,94778.0,0.27467352]
[1732788621039,0.01,94800.0,94778.0,0.29806452]
[1732788621263,0.01,94800.0,94799.0,0.105486]
[1732788621493,0.01,94800.0,94799.0,0.03831931]
[1732788621988,0.36482207,94810.0,94803.0,0.105481]
[1732788621989,0.01,94808.0,94803.0,0.105481]
[1732788622207,0.01,94807.0,94803.0,0.11878912]
[1732788622456,0.01,94819.0,94803.0,0.25979804]
[1732788623368,0.01,94816.0,94803.0,0.25979804]
[1732788624356,0.01,94820.0,94803.0,0.28279804]
[1732788624585,0.01,94824.0,94803.0,0.28279804]
[1732788624823,0.0018623,94804.0,94803.0,0.25979804]
[1732788625035,0.0018623,94804.0,94803.0,0.0382617]
[1732788625036,0.1073423,94804.0,94803.0,0.0382617]
[1732788625269,0.0008623,94804.0,94803.0,0.05154653]
[1732788625492,0.0008623,94804.0,94803.0,0.004]
[1732788625698,0.0008623,94804.0,94803.0,0.02589549]
[1732788625913,0.0008623,94804.0,94803.0,0.03917263]
[1732788626151,0.0008623,94804.0,94803.0,0.14865363]
[1732788626811,0.0008623,94804.0,94803.0,0.14465363]
[1732788627255,0.0008623,94804.0,94803.0,0.14865363]
[1732788627477,0.01,94811.0,94808.0,0.105475]
[1732788627478,0.00503834,94811.0,94808.0,0.105475]
[1732788627694,0.00503834,94813.0,94809.0,0.03817263]
[1732788627928,0.00503834,94811.0,94810.0,0.14364663]
[1732788628162,0.00503834,94811.0,94810.0,0.15841129]
[1732788628809,0.11051034,94811.0,94810.0,0.05293729]
[1732788629047,0.00503834,94811.0,94810.0,0.14364663]
[1732788629273,0.002,94813.0,94812.0,0.105471]
[1732788629477,0.001,94813.0,94812.0,0.14364363]
[1732788630404,0.00503834,94813.0,94812.0,0.03817263]
[1732788630869,0.12050834,94813.0,94812.0,0.03817263]
[1732788631111,0.12050834,94813.0,94812.0,0.0215745]
[1732788631112,0.20190834,94813.0,94812.0,0.0215745]
[1732788631332,0.35378749,94813.0,94812.0,0.00829736]
[1732788631553,0.105498,94788.0,94787.0,0.01328056]
[1732788631780,0.105497,94790.0,94787.0,0.03815616]
[1732788632014,0.105497,94790.0,94778.0,0.211019]
[1732788632015,0.105497,94789.0,94788.0,0.03815616]
[1732788632684,0.01,94791.0,94788.0,0.03815616]
[1732788632894,0.105496,94790.0,94789.0,0.02156519]
[1732788633323,0.01503834,94801.0,94789.0,0.02156519]
[1732788633585,0.01503834,94801.0,94790.0,0.03815616]
[1732788633586,0.01,94801.0,94790.0,0.03815616]
[1732788633808,0.01,94801.0,94791.0,0.03815616]
[1732788634042,0.01,94801.0,94792.0,0.03815616]
[1732788634264,0.01503834,94809.0,94793.0,0.03815616]
[1732788634505,0.36482207,94810.0,94792.0,0.10284521]
[1732788634506,0.00503834,94808.0,94795.0,0.023]
[1732788634730,0.00503834,94808.0,94796.0,0.14100137]
[1732788634978,0.0008618,94811.0,94798.0,0.023]
[1732788635191,0.00590014,94811.0,94801.0,0.210968]
[1732788635437,0.00590014,94811.0,94810.0,0.105474]
[1732788635438,0.0008618,94811.0,94810.0,0.105474]
[1732788635684,0.00590014,94811.0,94810.0,0.02156519]
[1732788635913,0.0008618,94811.0,94810.0,0.03816306]
[1732788636155,0.00590014,94811.0,94810.0,0.03816306]
[1732788636581,0.0008618,94811.0,94810.0,0.03816306]
[1732788636794,0.0008618,94811.0,94810.0,0.14363706]
[1732788637271,0.0008618,94811.0,94810.0,0.20019237]
[1732788637505,0.0008618,94811.0,94810.0,0.30303758]
[1732788637936,0.0008618,94811.0,94810.0,0.32703758]
[1732788639101,0.0008618,94811.0,94810.0,0.30403758]
[1732788639312,0.0008618,94811.0,94810.0,0.24748227]
[1732788640217,0.0008618,94811.0,94810.0,0.27048227]
[1732788641155,0.0008618,94811.0,94810.0,0.14200827]
[1732788641365,0.0008618,94811.0,94810.0,0.24748227]
[1732788641804,0.0008618,94811.0,94810.0,0.42048227]
[1732788642023,0.0008618,94811.0,94810.0,0.52331373]
[1732788645707,0.0008618,94811.0,94810.0,0.4934505]
[1732788645941,0.0008618,94811.0,94810.0,0.51005357]
[1732788646199,0.0008618,94811.0,94810.0,0.52333466]
[1732788647155,0.0008618,94811.0,94810.0,0.53545201]
[1732788647673,0.0008618,94811.0,94810.0,0.52333466]
[1732788648149,0.0008618,94811.0,94810.0,0.51505357]
[1732788648624,0.0008618,94811.0,94810.0,0.49845887]
[1732788648865,0.0008618,94811.0,94810.0,0.52837318]
[1732788649142,0.1063338,94811.0,94810.0,0.14706772]
[1732788650807,0.0008618,94811.0,94810.0,0.27554172]
[1732788651046,0.0008618,94811.0,94810.0,0.28768546]
[1732788651897,0.0008618,94811.0,94810.0,0.43768546]
[1732788652110,0.0008618,94811.0,94810.0,0.53140511]
[1732788652788,0.0008618,94811.0,94810.0,0.51478529]
[1732788655701,0.0008618,94811.0,94810.0,0.53141989]
[1732788655921,0.0008618,94811.0,94810.0,0.4931826]